bitfinex/quotes_SOLUSD_20220113
["timestamp","ask_amount","ask_price","bid_price","bid_amount"]
[1642088742064,0.25,153.58,153.47,13.0899]
[1642088742263,0.25,153.58,153.47,7.0899]
[1642088742493,2.605,153.61,153.47,13.0899]
[1642088742764,2.605,153.63,153.48,25.36403727]
[1642088742964,14.34111576,153.65,153.49,7.79]
[1642088743367,14.34111576,153.65,153.49,14.3]
[1642088743767,14.34111576,153.65,153.52,6.8339]
[1642088743966,14.34111576,153.65,153.52,6.51]
[1642088744165,14.34111576,153.65,153.53,8.156219]
[1642088744368,2.604,153.67,153.53,8.156219]
[1642088744566,2.604,153.69,153.54,7.79]
[1642088744969,2.604,153.69,153.54,14.3]
[1642088745368,2.604,153.69,153.54,37.0747]
[1642088745969,2.604,153.69,153.57,6.8316]
[1642088746467,2.604,153.69,153.57,13.3416]
[1642088746668,2.604,153.69,153.57,13.0916]
[1642088746869,10.394,153.69,153.57,12.8316]
[1642088747067,1.64999521,153.68,153.57,6.8316]
[1642088747268,10.393,153.67,153.57,6.8316]
[1642088747472,10.643,153.67,153.57,6.8316]
[1642088747670,16.65908702,153.66,153.57,6.8316]
[1642088747870,10.393,153.65,153.57,6.8316]
[1642088748071,2.853,153.65,153.57,6.8316]
[1642088748272,2.603,153.65,153.57,6.8316]
[1642088748471,15.00909181,153.66,153.57,7.0916]
[1642088748671,7.79,153.69,153.57,13.0916]
[1642088748871,10.393,153.74,153.57,20.8816]
[1642088749073,10.393,153.74,153.57,21.1316]
[1642088749272,10.393,153.74,153.57,14.04]
[1642088749472,7.79,153.74,153.57,14.04]
[1642088749772,17.1459673,153.73,153.58,1.81784792]
[1642088750003,14.5429673,153.73,153.59,7.79]
[1642088750376,14.5429673,153.73,153.59,20.8702]
[1642088750775,14.5429673,153.73,153.59,14.3]
[1642088751178,2.603,153.75,153.59,14.3]
[1642088751381,2.602,153.77,153.59,14.3]
[1642088752182,16.90423988,153.76,153.59,21.1302]
[1642088752383,2.602,153.75,153.59,14.3]
[1642088752585,2.602,153.75,153.59,14.05]
[1642088752783,2.852,153.75,153.59,14.05]
[1642088753184,2.602,153.75,153.61,7.89372014]
[1642088753585,2.602,153.75,153.62,63.64]
[1642088753788,2.602,153.75,153.61,14.15372014]
[1642088753789,2.602,153.75,153.61,21.94372014]
[1642088753985,2.602,153.75,153.61,22.19372014]
[1642088754184,2.602,153.75,153.62,6.8294]
[1642088754384,16.90423988,153.76,153.62,6.8294]
[1642088754585,2.602,153.75,153.62,13.3394]
[1642088754987,2.602,153.75,153.62,13.0794]
[1642088755485,1.64999521,153.74,153.62,12.8294]
[1642088755685,9.7616,153.71,153.62,12.8294]
[1642088755884,21.65034848,153.7,153.62,6.8294]
[1642088756086,21.90034848,153.7,153.62,6.8294]
[1642088756285,21.65034848,153.7,153.62,13.0894]
[1642088756586,19.04734848,153.7,153.62,13.0894]
[1642088756785,2.603,153.73,153.62,13.0894]
[1642088756984,2.602,153.76,153.62,76.9794]
[1642088757185,2.602,153.78,153.62,76.9794]
[1642088757385,2.602,153.78,153.63,14.6186]
[1642088757607,2.602,153.78,153.63,14.04]
[1642088757809,15.15753326,153.77,153.63,17.39977739]
[1642088758007,15.15753326,153.77,153.63,81.03977739]
[1642088758410,15.15753326,153.77,153.63,17.39977739]
[1642088759010,15.15753326,153.77,153.63,40.16317739]
[1642088759408,2.602,153.78,153.63,40.16317739]
[1642088759609,2.602,153.79,153.64,63.64]
[1642088759818,2.602,153.79,153.65,7.79]
[1642088760010,2.602,153.83,153.65,14.3]
[1642088760215,2.602,153.83,153.66,63.64]
[1642088760419,2.601,153.87,153.67,7.79]
[1642088760619,19.17168052,153.87,153.68,7.63627888]
[1642088760811,19.17168052,153.87,153.69,7.79]
[1642088761013,19.17168052,153.87,153.69,20.77284813]
[1642088761214,19.17168052,153.87,153.73,6.8242]
[1642088761412,2.6,153.86,153.75,7.63627888]
[1642088761612,2.6,153.86,153.75,15.93627888]
[1642088761814,2.6,153.91,153.75,21.93627888]
[1642088762014,2.6,153.91,153.76,1.471231]
[1642088762215,2.6,153.91,153.77,7.79]
[1642088762415,2.6,153.91,153.79,6.8215]
[1642088762615,18.36766348,153.9,153.79,6.8215]
[1642088762815,2.6,153.95,153.79,21.1215]
[1642088763019,2.6,153.95,153.8,1.471231]
[1642088763218,2.599,153.99,153.81,7.79]
[1642088763417,2.599,153.99,153.81,30.5219]
[1642088763615,2.599,153.99,153.81,37.0319]
[1642088763817,2.599,153.99,153.82,10.00028786]
[1642088763818,15.71606174,153.98,153.82,10.00028786]
[1642088764015,2.599,153.97,153.82,24.30028786]
[1642088764615,2.599,153.97,153.83,22.7302]
[1642088764815,2.599,154.02,153.84,10.389]
[1642088765014,2.598,154.04,153.84,18.37289986]
[1642088765415,2.598,154.04,153.85,1.47389986]
[1642088765617,2.598,154.08,153.88,6.8173]
[1642088765815,15.2397067,154.07,153.89,10.387]
[1642088766015,15.2397067,154.07,153.89,18.37089986]
[1642088766016,2.597,154.06,153.89,18.37089986]
[1642088766216,2.597,154.06,153.9,9.51031742]
[1642088766417,2.597,154.06,153.91,10.387]
[1642088766618,2.597,154.06,153.91,18.58374799]
[1642088766819,2.597,154.06,153.92,1.47389986]
[1642088767019,2.597,154.06,153.93,10.387]
[1642088767218,15.2397067,154.07,153.97,6.8155]
[1642088767420,15.2397067,154.07,153.98,10.387]
[1642088767719,15.2397067,154.07,153.98,12.12089986]
[1642088767918,2.596,154.14,153.98,18.37089986]
[1642088768123,2.596,154.14,153.99,65.11389986]
[1642088768421,2.596,154.17,154.02,6.8128]
[1642088768625,2.595,154.2,154.03,10.385]
[1642088768820,2.595,154.2,154.04,7.79]
[1642088769020,14.05991259,154.19,154.04,15.77389986]
[1642088769219,14.05991259,154.19,154.04,79.41389986]
[1642088769420,14.05991259,154.19,154.05,9.51031742]
[1642088769619,14.05991259,154.19,154.11,6.8091]
[1642088769826,14.05991259,154.19,154.11,14.5991]
[1642088770029,14.05991259,154.19,154.11,13.0691]
[1642088770221,14.05991259,154.19,154.11,6.8091]
[1642088770421,2.594,154.18,154.11,6.8091]
[1642088771725,2.594,154.18,154.09,6.8119]
[1642088773628,14.05991259,154.19,154.09,7.0619]
[1642088774028,14.05991259,154.19,154.09,13.0619]
[1642088774228,2.595,154.24,154.09,7.0619]
[1642088774428,2.595,154.24,154.09,13.3219]
[1642088774830,2.594,154.26,154.09,13.3219]
[1642088775031,2.594,154.26,154.16,6.8078]
[1642088775231,18.83286029,154.26,154.16,6.8078]
[1642088775435,2.594,154.26,154.16,7.0678]
[1642088775630,2.593,154.28,154.16,7.0678]
[1642088776661,18.80143282,154.27,154.16,7.0678]
[1642088776956,2.593,154.26,154.16,7.0678]
[1642088777358,8.843,154.26,154.16,7.0678]
[1642088777758,8.593,154.26,154.16,7.0678]
[1642088777966,8.593,154.26,154.16,7.3178]
[1642088778160,6.0,154.26,154.16,7.3178]
[1642088778367,6.0,154.26,154.19,6.8056]
[1642088778564,24.80143282,154.27,154.19,7.3156]
[1642088778762,24.80143282,154.27,154.19,7.0656]
[1642088779361,24.80143282,154.27,154.19,7.3156]
[1642088779562,23.7188,154.31,154.19,7.3156]
[1642088779868,2.593,154.33,154.19,16.57588318]
[1642088780062,73.6505,154.35,154.2,0.06]
[1642088780262,12.3104,154.39,154.21,6.8026]
[1642088780564,16.74929493,154.38,154.22,18.13855937]
[1642088780761,16.74929493,154.38,154.22,19.60884255]
[1642088780965,16.74929493,154.38,154.23,1.47028318]
[1642088781163,16.74929493,154.38,154.24,10.382]
[1642088781363,2.7551572,154.26,154.24,17.1834]
[1642088781662,0.0051572,154.26,154.25,70.6719]
[1642088781867,0.0051572,154.26,154.25,2.593]
[1642088782062,0.0051572,154.26,154.25,2.853]
[1642088782363,0.0051572,154.26,154.22,14.5951]
[1642088782563,0.0051572,154.26,154.17,10.383]
[1642088782766,0.0051572,154.26,154.19,6.0]
[1642088782964,0.0051572,154.26,154.18,6.0]
[1642088783163,0.0051572,154.26,154.19,2.593]
[1642088783365,0.0051572,154.26,154.21,6.8052]
[1642088783567,0.0051572,154.26,154.21,7.0552]
[1642088784166,0.0051572,154.26,154.21,6.8052]
[1642088784567,0.0051572,154.26,154.19,9.3991]
[1642088786170,0.0051572,154.26,154.19,2.593]
[1642088786370,2.593,154.25,154.19,2.593]
[1642088786768,8.593,154.25,154.19,2.593]
[1642088786968,8.843,154.25,154.19,2.593]
[1642088787168,13.65824325,154.24,154.19,2.593]
[1642088787369,13.65824325,154.24,154.12,2.593]
[1642088787569,13.90824325,154.24,154.12,8.593]
[1642088787770,13.90824325,154.24,154.12,8.853]
[1642088788071,13.90824325,154.24,154.12,9.103]
[1642088788269,13.90824325,154.24,154.16,6.8077]
[1642088788470,13.90824325,154.24,154.16,13.0677]
[1642088788673,13.90824325,154.24,154.16,12.8077]
[1642088788870,19.90824325,154.24,154.16,13.0577]
[1642088789070,13.90824325,154.24,154.16,13.0577]
[1642088789472,13.65824325,154.24,154.16,13.0577]
[1642088790079,0.0051572,154.26,154.16,13.3177]
[1642088790272,0.0051572,154.26,154.17,2.593]
[1642088790473,0.0051572,154.26,154.17,8.853]
[1642088790674,63.64,154.25,154.16,0.25]
[1642088790874,63.64,154.23,154.12,0.25]
[1642088791074,80.024,154.23,154.1,2.843]
[1642088791275,77.43,154.23,154.1,2.843]
[1642088791472,77.43,154.23,154.1,2.593]
[1642088791473,77.68,154.23,154.1,2.593]
[1642088791673,19.10866294,154.22,154.1,2.593]
[1642088791874,2.594,154.21,154.09,12.3384]
[1642088792073,2.844,154.21,154.13,6.8088]
[1642088792274,0.25,154.21,154.13,6.8088]
[1642088792474,0.25,154.21,154.13,7.0688]
[1642088793076,12.5732,154.21,154.09,28.6988]
[1642088793275,12.3232,154.21,154.09,28.9588]
[1642088793475,2.844,154.21,154.09,28.9588]
[1642088793675,2.844,154.21,154.09,28.6988]
[1642088793977,2.844,154.21,154.09,6.0]
[1642088794175,2.844,154.21,154.12,6.81]
[1642088794377,0.25,154.21,154.12,6.81]
[1642088794575,25.35866294,154.22,154.12,6.81]
[1642088794777,7.79,154.21,154.12,0.0001]
[1642088794975,66.234,154.2,154.12,0.0001]
[1642088795175,7.79,154.19,154.12,0.0001]
[1642088795376,2.594,154.18,154.12,0.0001]
[1642088795579,16.634,154.18,154.12,0.0001]
[1642088796179,18.28399521,154.18,154.12,0.0001]
[1642088796380,9.732,154.17,154.12,0.0001]
[1642088796583,10.384,154.16,154.12,0.0001]
[1642088796980,16.634,154.16,154.12,0.0001]
[1642088797181,63.64,154.15,154.12,0.0001]
[1642088797383,18.39379994,154.14,154.12,0.0001]
[1642088797582,24.64379994,154.14,154.12,0.0001]
[1642088798386,14.90939994,154.14,154.12,0.0001]
[1642088798586,6.31439994,154.14,154.12,0.0001]
[1642088798787,6.06439994,154.14,154.12,0.0001]
[1642088799389,80.9592963,154.17,154.12,0.0001]
[1642088799788,1.8126963,154.17,154.12,0.0001]
[1642088800189,1.8126963,154.19,154.12,0.0001]
[1642088800388,2.594,154.18,154.12,0.0001]
[1642088800589,1.8126963,154.19,154.12,0.0001]
[1642088801793,1.8126963,154.19,154.12,69.4774]
[1642088801991,1.8126963,154.19,154.12,75.9874]
[1642088802192,1.8126963,154.22,154.12,75.9874]
[1642088802394,1.8126963,154.22,154.13,4.05728698]
[1642088802611,1.8126963,154.22,154.13,10.56728698]
[1642088802810,1.8126963,154.22,154.14,3.20955867]
[1642088803010,1.8126963,154.22,154.14,3.71955867]
[1642088803214,1.8126963,154.22,154.14,0.51]
[1642088803511,4.4118535,154.26,154.14,0.26]
[1642088803712,6.0,154.22,154.13,2.854]
[1642088803912,4.6618535,154.26,154.13,6.3467]
[1642088804118,4.6618535,154.26,154.14,9.1433977]
[1642088804415,4.4118535,154.26,154.14,9.1433977]
[1642088804614,1.8126963,154.23,154.14,9.6533977]
[1642088804814,1.8126963,154.23,154.17,6.8081]
[1642088805015,1.8126963,154.23,154.17,7.0681]
[1642088805614,1.8178535,154.26,154.17,7.0681]
[1642088806016,11.5436535,154.26,154.17,7.0681]
[1642088806214,1.8178535,154.26,154.17,7.0681]
[1642088806614,1.8178535,154.26,154.17,0.26]
[1642088806815,4.4108535,154.26,154.17,0.26]
[1642088807017,4.4108535,154.26,154.16,22.6902]
[1642088807018,1.8178535,154.26,154.16,22.6902]
[1642088807215,1.8178535,154.26,154.17,2.593]
[1642088807416,1.8126963,154.25,154.17,2.593]
[1642088807616,1.8126963,154.25,154.17,9.103]
[1642088807817,1.8126963,154.25,154.18,1.59265857]
[1642088808016,1.8126963,154.25,154.18,2.10265857]
[1642088808216,1.8126963,154.25,154.18,1.85265857]
[1642088808416,0.0051572,154.26,154.18,1.85265857]
[1642088808616,0.0051572,154.26,154.18,0.26]
[1642088808817,0.0051572,154.26,154.2,6.8066]
[1642088809117,9.7308572,154.26,154.2,0.26]
[1642088809318,2.5981572,154.26,154.15,22.6919]
[1642088809521,6.2551572,154.26,154.16,10.37497102]
[1642088810018,0.2551572,154.26,154.16,16.62497102]
[1642088810218,6.2551572,154.26,154.16,16.62497102]
[1642088810419,7.8178535,154.26,154.16,16.62497102]
[1642088810621,8.0678535,154.26,154.16,16.62497102]
[1642088810822,8.0678535,154.26,154.17,6.808]
[1642088811021,1.8178535,154.26,154.17,13.318]
[1642088811622,1.8178535,154.26,154.17,13.058]
[1642088811822,7.8178535,154.26,154.17,12.808]
[1642088812221,2.593,154.25,154.17,12.808]
[1642088812623,8.593,154.25,154.17,12.808]
[1642088812822,8.843,154.25,154.17,12.808]
[1642088813023,9.7268,154.24,154.17,7.068]
[1642088813222,9.7268,154.24,154.14,32.352]
[1642088813223,18.60274843,154.23,154.14,16.468]
[1642088813422,2.594,154.22,154.14,16.468]
[1642088813827,8.844,154.22,154.14,16.468]
[1642088814226,10.6566963,154.22,154.14,16.468]
[1642088814433,8.0626963,154.22,154.14,16.468]
[1642088814628,8.0626963,154.22,154.14,16.728]
[1642088815426,6.25,154.22,154.14,16.728]
[1642088815627,6.25,154.22,154.14,16.468]
[1642088815835,0.25,154.22,154.14,16.468]
[1642088816027,6.0,154.22,154.14,16.468]
[1642088816228,6.25,154.22,154.14,16.468]
[1642088816630,0.25,154.22,154.14,16.468]
[1642088816829,1.8126963,154.23,154.15,2.13764921]
[1642088817030,1.8126963,154.23,154.18,6.8081]
[1642088817431,1.8126963,154.23,154.18,7.0681]
[1642088818131,1.8126963,154.25,154.18,7.0681]
[1642088819133,23.52663844,154.26,154.18,6.8081]
[1642088819333,6.0,154.25,154.18,6.8081]
[1642088819533,23.52663844,154.26,154.18,6.8081]
[1642088819739,23.77663844,154.26,154.18,6.8081]
[1642088820240,1.8126963,154.25,154.18,6.8081]
[1642088820434,1.8126963,154.25,154.18,7.0681]
[1642088820639,8.0626963,154.25,154.18,7.0681]
[1642088820841,7.8126963,154.25,154.18,7.0681]
[1642088821535,1.8126963,154.25,154.18,7.0681]
[1642088822137,1.8126963,154.25,154.18,7.3181]
[1642088822340,1.8126963,154.25,154.19,2.593]
[1642088822541,1.8126963,154.25,154.2,6.8047]
[1642088822738,0.0051572,154.26,154.21,2.593]
[1642088823137,0.0051572,154.26,154.21,16.893]
[1642088823337,0.0051572,154.26,154.21,18.35627858]
[1642088823536,0.0051572,154.26,154.21,25.15977858]
[1642088823738,0.0051572,154.26,154.22,63.64]
[1642088824039,0.0051572,154.26,154.23,2.593]
[1642088824439,0.0051572,154.26,154.23,9.103]
[1642088824639,0.0051572,154.26,154.24,3.08088584]
[1642088824843,0.0051572,154.26,154.24,9.88448584]
[1642088825043,0.0051572,154.26,154.24,24.18448584]
[1642088825244,1.8126963,154.32,154.26,63.64]
[1642088825439,1.8126963,154.32,154.26,71.43]
[1642088825640,1.8126963,154.32,154.26,79.40327858]
[1642088825839,1.8126963,154.32,154.27,7.65517043]
[1642088826043,1.8126963,154.34,154.27,14.16517043]
[1642088826841,1.8126963,154.34,154.29,6.8014]
[1642088827043,1.8126963,154.34,154.29,13.3114]
[1642088827350,1.3126963,154.35,154.29,13.3114]
[1642088827544,1.3126963,154.35,154.29,15.9034]
[1642088827742,1.3126963,154.35,154.3,3.08088584]
[1642088827942,1.3126963,154.35,154.3,3.59088584]
[1642088828145,0.0126963,154.35,154.32,6.7997]
[1642088828345,3.68772635,154.39,154.32,6.7997]
[1642088828545,4.51616269,154.42,154.32,7.3097]
[1642088828776,4.51616269,154.42,154.32,13.3097]
[1642088828946,4.51616269,154.42,154.32,13.3697]
[1642088829145,4.51616269,154.42,154.37,6.7981]
[1642088829348,4.51616269,154.42,154.38,3.08088584]
[1642088829545,4.51616269,154.42,154.38,3.34088584]
[1642088829948,4.51616269,154.42,154.38,3.59088584]
[1642088830347,4.51616269,154.42,154.4,6.7977]
[1642088830546,4.51616269,154.42,154.4,7.0577]
[1642088830547,0.82843634,154.42,154.4,7.0577]
[1642088831748,13.60567138,154.46,154.4,7.0577]
[1642088831948,19.60567138,154.46,154.4,7.0577]
[1642088832348,19.60567138,154.46,154.4,6.7977]
[1642088832550,19.60567138,154.46,154.39,6.799]
[1642088832748,2.59,154.45,154.32,78.721]
[1642088832950,8.84,154.45,154.28,90.258]
[1642088833147,8.84,154.45,154.28,87.668]
[1642088833148,63.64,154.44,154.28,87.668]
[1642088833349,18.84417466,154.42,154.28,87.668]
[1642088833550,2.591,154.41,154.33,6.8013]
[1642088833952,8.841,154.41,154.33,6.8013]
[1642088835153,18.5571,154.41,154.32,6.8016]
[1642088835352,7.79,154.4,154.27,35.1518]
[1642088835551,2.591,154.39,154.27,35.1518]
[1642088835751,7.79,154.38,154.27,35.1518]
[1642088835951,18.11757068,154.37,154.24,2.591]
[1642088836154,35.62627068,154.37,154.28,6.8033]
[1642088836450,41.87627068,154.37,154.28,6.8033]
[1642088836853,32.15757068,154.37,154.28,6.8033]
[1642088837452,32.15757068,154.37,154.28,7.0633]
[1642088837654,21.77657068,154.37,154.28,7.0633]
[1642088838052,2.591,154.36,154.28,7.0633]
[1642088838253,10.381,154.36,154.26,6.8039]
[1642088838452,26.3503,154.36,154.21,2.592]
[1642088838652,16.631,154.36,154.2,2.592]
[1642088838852,95.3928,154.36,154.2,33.0644]
[1642088839052,95.3928,154.36,154.2,26.73767858]
[1642088839254,63.64,154.35,154.28,0.04]
[1642088839455,9.7219,154.32,154.28,0.04]
[1642088839653,2.592,154.31,154.28,0.04]
[1642088839853,23.29606096,154.3,154.28,0.04]
[1642088840053,29.54606096,154.3,154.28,0.04]
[1642088842255,12.06439994,154.3,154.28,0.04]
[1642088842453,6.06439994,154.3,154.28,0.04]
[1642088842857,12.06439994,154.3,154.28,0.04]
[1642088843256,28.71028584,154.3,154.28,0.04]
[1642088843787,28.71028584,154.3,154.2,2.592]
[1642088843955,28.71028584,154.3,154.17,2.593]
[1642088843956,10.383,154.29,154.17,2.593]
[1642088844155,10.383,154.29,154.13,2.593]
[1642088844357,16.633,154.29,154.13,2.593]
[1642088845155,32.4238,154.28,154.15,6.809]
[1642088845359,10.383,154.27,154.12,0.0001]
[1642088845556,0.02847624,154.14,154.12,0.0001]
[1642088847258,21.14377491,154.19,154.12,0.0001]
[1642088847459,30.87417491,154.19,154.12,0.0001]
[1642088851598,63.64,154.18,154.12,0.0001]
[1642088851797,9.7323,154.16,154.12,0.0001]
[1642088851996,15.9823,154.16,154.12,0.0001]
[1642088852698,79.6223,154.16,154.12,0.0001]
[1642088853201,9.7339,154.14,154.12,0.0001]
[1642088853398,86.06439994,154.13,154.12,0.0001]
[1642088853597,92.31439994,154.13,154.12,0.0001]
[1642088853899,40.06439994,154.13,154.12,0.0001]
[1642088854101,6.06439994,154.13,154.12,0.0001]
[1642088854898,60.06439994,154.13,154.12,0.0001]
[1642088855398,6.06439994,154.13,154.12,0.0001]
[1642088855602,6.31439994,154.13,154.12,0.0001]
[1642088855802,51.31439994,154.13,154.12,0.0001]
[1642088856505,6.31439994,154.13,154.12,0.0001]
[1642088856901,33.31439994,154.13,154.12,0.0001]
[1642088857201,6.06439994,154.13,154.12,0.0001]
[1642088859904,41.06439994,154.13,154.12,0.0001]
[1642088860307,6.06439994,154.13,154.12,0.0001]
[1642088860907,35.06439994,154.13,154.12,0.0001]
[1642088861706,6.31439994,154.13,154.12,0.0001]
[1642088862105,6.06439994,154.13,154.12,0.0001]
[1642088862707,55.06439994,154.13,154.12,0.0001]
[1642088863807,55.31439994,154.13,154.12,0.0001]
[1642088864708,100.31439994,154.13,154.12,0.0001]
[1642088864908,63.90939994,154.13,154.12,0.0001]
[1642088865111,71.04819994,154.13,154.12,0.0001]
[1642088865609,71.04819994,154.13,154.01,8.595]
[1642088865610,78.83819994,154.13,154.01,2.595]
[1642088865811,2.596,154.12,153.97,75.1698]
[1642088866013,7.79,154.11,153.97,2.596]
[1642088866209,2.596,154.1,153.97,2.596]
[1642088866409,22.22771193,154.09,153.97,2.596]
[1642088866712,9.737,154.08,153.97,8.4389]
[1642088867108,15.987,154.08,153.97,8.4389]
[1642088867910,9.987,154.08,153.97,8.6889]
[1642088868109,2.596,154.11,153.97,34.35748416]
[1642088868309,122.7549,154.12,153.97,40.60581097]
[1642088868513,0.25,154.11,153.98,10.25499054]
[1642088868710,0.25,154.11,154.03,5.8404]
[1642088868909,13.56453691,154.11,154.03,5.8404]
[1642088869111,23.29953691,154.11,153.99,4.06400856]
[1642088869312,29.29953691,154.11,153.99,4.07400856]
[1642088869512,29.29953691,154.11,154.0,1.46800856]
[1642088870040,29.29953691,154.11,154.0,1.97800856]
[1642088870211,29.29953691,154.11,154.02,5.8417]
[1642088870913,9.7364,154.09,154.02,5.8417]
[1642088871215,2.596,154.1,154.02,5.8417]
[1642088871415,22.16053691,154.11,154.02,5.8417]
[1642088871613,6.0,154.1,154.02,5.8417]
[1642088871815,22.41053691,154.11,154.02,5.8417]
[1642088872217,9.7356,154.1,154.02,6.1017]
[1642088872620,15.9856,154.1,154.02,6.1017]
[1642088873617,18.5816,154.1,154.02,6.1017]
[1642088874017,18.3316,154.1,154.02,5.6017]
[1642088874218,18.3316,154.1,154.02,0.26]
[1642088874618,18.3316,154.1,154.01,5.8423]
[1642088874819,7.79,154.09,153.98,2.596]
[1642088875019,9.7377,154.07,153.98,2.596]
[1642088875220,9.7377,154.07,153.97,22.0705]
[1642088875420,15.9877,154.07,153.99,5.843]
[1642088875621,15.2641803,154.06,153.99,5.843]
[1642088876021,21.2641803,154.06,153.99,6.093]
[1642088876223,56.3687,154.11,154.0,2.596]
[1642088876625,62.3687,154.11,154.0,2.856]
[1642088877025,62.3687,154.11,154.0,2.596]
[1642088877224,2.596,154.1,153.97,2.596]
[1642088877547,7.79,154.09,153.97,1.97800856]
[1642088877847,17.27146291,154.07,153.97,1.71800856]
[1642088878045,23.52146291,154.07,153.97,1.71800856]
[1642088878349,9.7391,154.05,153.97,7.31150856]
[1642088878552,79.6291,154.05,153.96,2.596]
[1642088878747,10.387,154.04,153.93,1.46800856]
[1642088878950,63.64,154.03,153.91,16.2955919]
[1642088879148,2.597,154.02,153.91,3.2880163]
[1642088879349,14.425426,154.0,153.91,3.2880163]
[1642088879557,20.675426,154.0,153.91,3.2880163]
[1642088880150,20.675426,154.0,153.88,5.8850163]
[1642088880350,63.64,153.97,153.88,3.2880163]
[1642088880551,2.598,153.96,153.88,3.2880163]
[1642088880751,7.79,153.95,153.88,3.2880163]
[1642088880952,2.598,153.94,153.88,3.2880163]
[1642088881152,14.04,153.95,153.88,3.2880163]
[1642088881354,2.598,153.94,153.83,7.35402491]
[1642088881557,18.5942,153.94,153.83,5.8860163]
[1642088881750,22.73121261,153.93,153.83,5.8860163]
[1642088881952,28.98121261,153.93,153.83,7.35402491]
[1642088882153,2.599,153.92,153.83,5.8860163]
[1642088882352,71.43,153.91,153.83,3.2880163]
[1642088882554,94.1574,153.91,153.83,3.2880163]
[1642088882956,94.1574,153.91,153.8,5.49101291]
[1642088883153,2.599,153.9,153.79,3.55524825]
[1642088883451,63.64,153.88,153.79,3.55524825]
[1642088883652,9.7535,153.83,153.79,3.55524825]
[1642088883952,9.7535,153.83,153.75,5.49101291]
[1642088883953,7.79,153.82,153.75,5.49101291]
[1642088884352,63.64,153.8,153.71,4.06700861]
[1642088884553,63.64,153.78,153.68,23.78831484]
[1642088884752,7.79,153.77,153.68,23.78831484]
[1642088884952,23.7978,153.77,153.69,5.54124133]
[1642088885351,8.04,153.77,153.69,5.54124133]
[1642088885952,8.04,153.77,153.69,5.79124133]
[1642088886154,7.79,153.77,153.7,2.14902108]
[1642088886354,2.601,153.8,153.7,4.75002108]
[1642088886553,73.763,153.83,153.71,1.46800861]
[1642088886757,7.79,153.82,153.71,1.46800861]
[1642088887156,7.79,153.82,153.7,9.4304]
[1642088887354,7.79,153.82,153.7,9.6804]
[1642088887553,14.04,153.82,153.7,9.4304]
[1642088887853,15.34326946,153.81,153.7,9.4304]
[1642088888053,10.391,153.8,153.7,9.4304]
[1642088888253,7.79,153.8,153.7,9.4304]
[1642088888454,14.04,153.8,153.68,9.4308]
[1642088888652,16.641,153.8,153.68,6.8298]
[1642088889854,63.64,153.79,153.65,11.29780861]
[1642088890052,63.64,153.79,153.66,6.8309]
[1642088890053,10.392,153.78,153.66,6.8309]
[1642088890455,16.642,153.78,153.65,1.46800861]
[1642088890657,16.642,153.78,153.61,1.46800861]
[1642088890855,48.0537,153.77,153.61,1.46800861]
[1642088891057,18.80887152,153.75,153.61,1.46800861]
[1642088891357,10.392,153.74,153.61,1.46800861]
[1642088891557,16.642,153.74,153.61,1.46800861]
[1642088891759,22.241,153.74,153.59,2.602]
[1642088892758,9.7627,153.69,153.59,2.602]
[1642088892959,17.22316774,153.68,153.58,25.1631]
[1642088893159,17.22316774,153.68,153.58,22.5601]
[1642088893363,17.47316774,153.68,153.59,2.603]
[1642088893559,17.47316774,153.68,153.59,8.603]
[1642088893759,10.393,153.71,153.59,10.07100861]